[Event "Titled Tuesday Blitz July 25 Early 2023"]
[White "Arat, Ufuk Sezen"]
[Black "ZugZwang1201"]
[WhiteFideId "6309089"]
[WhiteElo "2621"]
[BlackElo "2451"]
[Result "1/2-1/2"]
[Round "10"]
[TimeControl "180+2"]
[Date "2023.07.25"]
[WhiteClock "0:00:04"]
[BlackClock "0:00:06"]
[Board "73"]

1. e4 {[%clk 0:03:00]}  c5 {[%clk 0:02:59]} 2. Nf3 {[%clk 0:03:01]}  e6 {[%clk 0:02:59]} 3. d4 {[%clk 0:03:01]}  cxd4 {[%clk 0:03:00]} 4. Nxd4 {[%clk 0:03:02]}  a6 {[%clk 0:03:00]} 5. c4 {[%clk 0:03:02]}  Qc7 {[%clk 0:03:00]} 6. Nc3 {[%clk 0:03:02]}  Nf6 {[%clk 0:03:01]} 7. Qd3 {[%clk 0:03:01]}  Be7 {[%clk 0:03:00]} 8. f4 {[%clk 0:02:57]}  d6 {[%clk 0:03:00]} 9. Be3 {[%clk 0:02:56]}  Nbd7 {[%clk 0:02:56]} 10. Be2 {[%clk 0:02:56]}  h5 {[%clk 0:02:56]} 11. O-O-O {[%clk 0:02:55]}  b6 {[%clk 0:02:49]} 12. Bf3 {[%clk 0:02:55]}  Bb7 {[%clk 0:02:49]} 13. h3 {[%clk 0:02:54]}  h4 {[%clk 0:02:45]} 14. Kb1 {[%clk 0:02:54]}  Rc8 {[%clk 0:02:44]} 15. Rc1 {[%clk 0:02:42]}  Qb8 {[%clk 0:02:43]} 16. Rhd1 {[%clk 0:02:39]}  Qa8 {[%clk 0:02:43]} 17. f5 {[%clk 0:02:36]}  Nc5 {[%clk 0:01:55]} 18. Qc2 {[%clk 0:02:36]}  e5 {[%clk 0:01:52]} 19. Nb3 {[%clk 0:02:31]}  Ncxe4 {[%clk 0:01:49]} 20. Na4 {[%clk 0:02:25]}  Nd7 {[%clk 0:01:36]} 21. Nxb6 {[%clk 0:02:24]}  Nxb6 {[%clk 0:01:35]} 22. Bxb6 {[%clk 0:02:24]}  Nf6 {[%clk 0:01:10]} 23. Bxb7 {[%clk 0:02:18]}  Qxb7 {[%clk 0:01:11]} 24. c5 {[%clk 0:02:16]}  dxc5 {[%clk 0:01:05]} 25. Bxc5 {[%clk 0:02:14]}  O-O {[%clk 0:00:58]} 26. Qe2 {[%clk 0:02:14]}  Rfe8 {[%clk 0:00:43]} 27. Bxe7 {[%clk 0:02:04]}  Rxe7 {[%clk 0:00:38]} 28. Nc5 {[%clk 0:02:00]}  Qb5 {[%clk 0:00:31]} 29. Qxb5 {[%clk 0:01:57]}  axb5 {[%clk 0:00:32]} 30. Nd3 {[%clk 0:01:57]}  Rce8 {[%clk 0:00:28]} 31. Nb4 {[%clk 0:01:55]}  e4 {[%clk 0:00:28]} 32. Nd5 {[%clk 0:01:55]}  Nxd5 {[%clk 0:00:19]} 33. Rxd5 {[%clk 0:01:56]}  Re5 {[%clk 0:00:20]} 34. Rc8 {[%clk 0:01:38]}  Kh7 {[%clk 0:00:16]} 35. Rxe8 {[%clk 0:01:23]}  Rxe8 {[%clk 0:00:12]} 36. Kc2 {[%clk 0:01:23]}  e3 {[%clk 0:00:07]} 37. Kd1 {[%clk 0:01:23]}  Kh6 {[%clk 0:00:07]} 38. Ke2 {[%clk 0:01:22]}  Kg5 {[%clk 0:00:07]} 39. Rxb5 {[%clk 0:01:22]}  Kf4 {[%clk 0:00:06]} 40. a4 {[%clk 0:01:19]}  Re4 {[%clk 0:00:01]} 41. a5 {[%clk 0:01:13]}  Rd4 {[%clk 0:00:01]} 42. a6 {[%clk 0:01:13]}  Rd2+ {[%clk 0:00:02]} 43. Ke1 {[%clk 0:01:14]}  Rxg2 {[%clk 0:00:01]} 44. f6 {[%clk 0:00:51]}  g6 {[%clk 0:00:01]} 45. a7 {[%clk 0:00:28]}  Rg1+ {[%clk 0:00:02]} 46. Ke2 {[%clk 0:00:29]}  Ra1 {[%clk 0:00:03]} 47. Rb7 {[%clk 0:00:24]}  Ra2 {[%clk 0:00:03]} 48. a8=Q {[%clk 0:00:20]}  Rxa8 {[%clk 0:00:03]} 49. Rxf7 {[%clk 0:00:21]}  Rb8 {[%clk 0:00:03]} 50. Rh7 {[%clk 0:00:15]}  Rxb2+ {[%clk 0:00:03]} 51. Kd3 {[%clk 0:00:16]}  e2 {[%clk 0:00:03]} 52. Re7 {[%clk 0:00:15]}  Kf3 {[%clk 0:00:03]} 53. f7 {[%clk 0:00:14]}  Rb8 {[%clk 0:00:03]} 54. Re8 {[%clk 0:00:13]}  Rd8+ {[%clk 0:00:03]} 55. Rxd8 {[%clk 0:00:10]}  e1=Q {[%clk 0:00:04]} 56. f8=Q+ {[%clk 0:00:11]}  Kg3 {[%clk 0:00:04]} 57. Qd6+ {[%clk 0:00:10]}  Kxh3 {[%clk 0:00:04]} 58. Qd7+ {[%clk 0:00:11]}  Kh2 {[%clk 0:00:04]} 59. Qd6+ {[%clk 0:00:10]}  Qg3+ {[%clk 0:00:05]} 60. Qxg3+ {[%clk 0:00:09]}  hxg3 {[%clk 0:00:06]} 61. Rh8+ {[%clk 0:00:10]}  Kg1 {[%clk 0:00:05]} 62. Ke2 {[%clk 0:00:08]}  g2 {[%clk 0:00:05]} 63. Rh3 {[%clk 0:00:06]}  g5 {[%clk 0:00:05]} 64. Rh8 {[%clk 0:00:04]}  g4 {[%clk 0:00:05]} 65. Rh4 {[%clk 0:00:04]}  g3 {[%clk 0:00:06]} 66. Ra4 {[%clk 0:00:04]}  Kh2 {[%clk 0:00:06]} 67. Rh4+ {[%clk 0:00:04]}  Kg1 {[%clk 0:00:06]} 68. Kf3 {[%clk 0:00:05]}  Kf1 {[%clk 0:00:05]} 69. Ra4 {[%clk 0:00:05]}  Kg1 {[%clk 0:00:05]} 70. Ra1+ {[%clk 0:00:05]}  Kh2 {[%clk 0:00:05]} 71. Ra2 {[%clk 0:00:06]}  Kh1 {[%clk 0:00:06]} 72. Ra1+ {[%clk 0:00:04]}  Kh2 {[%clk 0:00:06]} 73. Ra2 {[%clk 0:00:04]}  Kh1 {[%clk 0:00:06]} 74. Rxg2 {[%clk 0:00:04]} 1/2-1/2


[Site "https://www.chess.com"]

[Event "Titled Tuesday Blitz July 25 Early 2023"]
[White "Gamayev, Oleg"]
[Black "Harriott, Tyrell"]
[WhiteFideId "2802813"]
[BlackFideId "2086484"]
[WhiteElo "2588"]
[BlackElo "2408"]
[Result "0-1"]
[Round "10"]
[TimeControl "180+2"]
[Date "2023.07.25"]
[WhiteClock "0:00:30"]
[BlackClock "0:00:10"]
[Board "77"]

1. d3 {[%clk 0:02:57]}  d6 {[%clk 0:02:58]} 2. e4 {[%clk 0:02:58]}  Nf6 {[%clk 0:02:59]} 3. Nf3 {[%clk 0:02:58]}  e5 {[%clk 0:02:59]} 4. Be2 {[%clk 0:02:59]}  Be7 {[%clk 0:02:59]} 5. O-O {[%clk 0:03:00]}  O-O {[%clk 0:02:59]} 6. c3 {[%clk 0:03:00]}  Nbd7 {[%clk 0:02:59]} 7. Nbd2 {[%clk 0:03:01]}  Re8 {[%clk 0:02:59]} 8. d4 {[%clk 0:03:01]}  c6 {[%clk 0:02:59]} 9. dxe5 {[%clk 0:03:02]}  dxe5 {[%clk 0:03:00]} 10. Qc2 {[%clk 0:03:02]}  Qc7 {[%clk 0:03:00]} 11. h3 {[%clk 0:03:03]}  Nf8 {[%clk 0:03:00]} 12. Re1 {[%clk 0:03:04]}  Ng6 {[%clk 0:03:00]} 13. a4 {[%clk 0:03:05]}  h6 {[%clk 0:03:00]} 14. Bc4 {[%clk 0:03:05]}  Nh7 {[%clk 0:02:59]} 15. Nf1 {[%clk 0:03:05]}  Bg5 {[%clk 0:02:59]} 16. Ng3 {[%clk 0:03:01]}  Nf4 {[%clk 0:02:54]} 17. Bxf4 {[%clk 0:02:59]}  Bxf4 {[%clk 0:02:54]} 18. Nf1 {[%clk 0:02:57]}  Bg5 {[%clk 0:02:50]} 19. Rad1 {[%clk 0:02:55]}  Qe7 {[%clk 0:02:50]} 20. Kh2 {[%clk 0:02:38]}  Bf6 {[%clk 0:02:47]} 21. g3 {[%clk 0:02:34]}  g5 {[%clk 0:02:46]} 22. Ne3 {[%clk 0:02:29]}  h5 {[%clk 0:02:43]} 23. Ng1 {[%clk 0:02:24]}  g4 {[%clk 0:02:41]} 24. h4 {[%clk 0:02:21]}  Bxh4 {[%clk 0:02:40]} 25. gxh4 {[%clk 0:02:21]}  Qxh4+ {[%clk 0:02:41]} 26. Kg2 {[%clk 0:02:20]}  Ng5 {[%clk 0:02:26]} 27. Nf1 {[%clk 0:02:09]}  Be6 {[%clk 0:02:17]} 28. Bxe6 {[%clk 0:02:07]}  Rxe6 {[%clk 0:02:17]} 29. Re3 {[%clk 0:02:07]}  Rf6 {[%clk 0:02:16]} 30. Rg3 {[%clk 0:02:06]}  Ne6 {[%clk 0:02:14]} 31. Ne2 {[%clk 0:01:55]}  Nf4+ {[%clk 0:02:10]} 32. Nxf4 {[%clk 0:01:56]}  exf4 {[%clk 0:02:10]} 33. Rgd3 {[%clk 0:01:52]}  f3+ {[%clk 0:02:10]} 34. Kg1 {[%clk 0:01:52]}  Qh3 {[%clk 0:02:07]} 35. Rd8+ {[%clk 0:01:47]}  Kg7 {[%clk 0:02:03]} 36. Ne3 {[%clk 0:01:46]}  Rxd8 {[%clk 0:01:48]} 37. Rxd8 {[%clk 0:01:44]}  g3 {[%clk 0:01:48]} 38. fxg3 {[%clk 0:01:45]}  f2+ {[%clk 0:01:46]} 39. Qxf2 {[%clk 0:01:45]}  Rxf2 {[%clk 0:01:44]} 40. Kxf2 {[%clk 0:01:46]}  Qh2+ {[%clk 0:01:41]} 41. Ng2 {[%clk 0:01:41]}  Qh1 {[%clk 0:01:38]} 42. Rd2 {[%clk 0:01:37]}  Qb1 {[%clk 0:01:37]} 43. Re2 {[%clk 0:01:36]}  Qa2 {[%clk 0:01:35]} 44. Ne3 {[%clk 0:01:36]}  Qxa4 {[%clk 0:01:34]} 45. Nf5+ {[%clk 0:01:36]}  Kf6 {[%clk 0:01:33]} 46. Kf3 {[%clk 0:01:36]}  Qd1 {[%clk 0:01:27]} 47. Ne3 {[%clk 0:01:33]}  Qh1+ {[%clk 0:01:26]} 48. Kf2 {[%clk 0:01:32]}  Qxe4 {[%clk 0:01:22]} 49. Ng2 {[%clk 0:01:32]}  Qf5+ {[%clk 0:01:15]} 50. Kg1 {[%clk 0:01:31]}  Qc5+ {[%clk 0:01:15]} 51. Kh2 {[%clk 0:01:29]}  a5 {[%clk 0:01:15]} 52. Nf4 {[%clk 0:01:26]}  b5 {[%clk 0:01:11]} 53. Nd3 {[%clk 0:01:23]}  Qc4 {[%clk 0:01:04]} 54. Rf2+ {[%clk 0:01:23]}  Kg7 {[%clk 0:00:59]} 55. Nf4 {[%clk 0:01:18]}  Qc5 {[%clk 0:00:51]} 56. Rd2 {[%clk 0:01:10]}  Qg5 {[%clk 0:00:46]} 57. Rd7 {[%clk 0:01:06]}  Qe5 {[%clk 0:00:34]} 58. Rd2 {[%clk 0:00:58]}  h4 {[%clk 0:00:31]} 59. Re2 {[%clk 0:00:58]}  hxg3+ {[%clk 0:00:31]} 60. Kxg3 {[%clk 0:00:59]}  Qg5+ {[%clk 0:00:31]} 61. Kf3 {[%clk 0:00:59]}  Qf5 {[%clk 0:00:30]} 62. Ke3 {[%clk 0:00:49]}  c5 {[%clk 0:00:28]} 63. Nd3 {[%clk 0:00:48]}  Qe6+ {[%clk 0:00:24]} 64. Kd2 {[%clk 0:00:47]}  Qc4 {[%clk 0:00:23]} 65. Rg2+ {[%clk 0:00:46]}  Kf8 {[%clk 0:00:23]} 66. Rf2 {[%clk 0:00:45]}  b4 {[%clk 0:00:21]} 67. cxb4 {[%clk 0:00:44]}  cxb4 {[%clk 0:00:21]} 68. Rf4 {[%clk 0:00:43]}  Qc7 {[%clk 0:00:19]} 69. b3 {[%clk 0:00:42]}  Qc3+ {[%clk 0:00:18]} 70. Ke2 {[%clk 0:00:41]}  Qxb3 {[%clk 0:00:19]} 71. Ke3 {[%clk 0:00:38]}  Qc2 {[%clk 0:00:17]} 72. Kd4 {[%clk 0:00:36]}  b3 {[%clk 0:00:16]} 73. Ne5 {[%clk 0:00:34]}  Qb2+ {[%clk 0:00:15]} 74. Ke4 {[%clk 0:00:32]}  Qb1+ {[%clk 0:00:13]} 75. Kd5 {[%clk 0:00:32]}  Qd1+ {[%clk 0:00:12]} 76. Ke4 {[%clk 0:00:31]}  Qe1+ {[%clk 0:00:11]} 77. Kd5 {[%clk 0:00:32]}  Qd2+ {[%clk 0:00:12]} 78. Ke4 {[%clk 0:00:32]}  Qc2+ {[%clk 0:00:10]} 79. Kd4 {[%clk 0:00:32]}  b2 {[%clk 0:00:10]} 80. Rxf7+ {[%clk 0:00:31]}  Ke8 {[%clk 0:00:10]} 81. Rb7 {[%clk 0:00:32]}  b1=Q {[%clk 0:00:10]} 82. Rxb1 {[%clk 0:00:31]}  Qxb1 {[%clk 0:00:11]} 83. Nc4 {[%clk 0:00:31]}  a4 {[%clk 0:00:10]} 84. Kc5 {[%clk 0:00:30]}  Qb3 {[%clk 0:00:10]} 85. Nd6+ {[%clk 0:00:30]}  Kd7 {[%clk 0:00:10]} 86. Nb5 {[%clk 0:00:31]}  Qxb5+ {[%clk 0:00:09]} 87. Kxb5 {[%clk 0:00:30]}  a3 {[%clk 0:00:10]} 0-1


[Site "https://www.chess.com"]

[Event "Titled Tuesday Blitz July 25 Early 2023"]
[White "Ilkhomi, Jaloliddin"]
[Black "Girinath, P.D.S."]
[WhiteFideId "14700948"]
[BlackFideId "5000572"]
[WhiteElo "2581"]
[BlackElo "2386"]
[Result "1-0"]
[Round "10"]
[TimeControl "180+2"]
[Date "2023.07.25"]
[WhiteClock "0:01:00"]
[BlackClock "0:00:00"]
[Board "78"]

1. d4 {[%clk 0:03:00]}  f5 {[%clk 0:02:52]} 2. Nf3 {[%clk 0:02:59]}  Nf6 {[%clk 0:02:51]} 3. c4 {[%clk 0:03:00]}  e6 {[%clk 0:02:51]} 4. Nc3 {[%clk 0:03:00]}  Be7 {[%clk 0:02:50]} 5. g3 {[%clk 0:03:00]}  O-O {[%clk 0:02:50]} 6. Bg2 {[%clk 0:02:59]}  d6 {[%clk 0:02:51]} 7. O-O {[%clk 0:03:00]}  a5 {[%clk 0:02:51]} 8. Qc2 {[%clk 0:02:59]}  Nc6 {[%clk 0:02:50]} 9. e4 {[%clk 0:02:56]}  fxe4 {[%clk 0:02:51]} 10. Nxe4 {[%clk 0:02:57]}  e5 {[%clk 0:02:51]} 11. dxe5 {[%clk 0:02:51]}  dxe5 {[%clk 0:02:52]} 12. Nxf6+ {[%clk 0:02:46]}  Bxf6 {[%clk 0:02:53]} 13. Be3 {[%clk 0:02:42]}  Nd4 {[%clk 0:02:26]} 14. Nxd4 {[%clk 0:02:24]}  exd4 {[%clk 0:02:27]} 15. Rad1 {[%clk 0:02:24]}  c5 {[%clk 0:02:23]} 16. Bf4 {[%clk 0:02:21]}  Bg4 {[%clk 0:01:42]} 17. Bd5+ {[%clk 0:02:06]}  Kh8 {[%clk 0:01:40]} 18. f3 {[%clk 0:02:07]}  Bh3 {[%clk 0:01:28]} 19. Rfe1 {[%clk 0:02:06]}  Qd7 {[%clk 0:01:27]} 20. Qb3 {[%clk 0:01:59]}  g5 {[%clk 0:01:09]} 21. Be5 {[%clk 0:01:50]}  Rae8 {[%clk 0:00:53]} 22. Bxf6+ {[%clk 0:01:45]}  Rxf6 {[%clk 0:00:48]} 23. Bxb7 {[%clk 0:01:17]}  Rxe1+ {[%clk 0:00:36]} 24. Rxe1 {[%clk 0:01:18]}  Re6 {[%clk 0:00:36]} 25. Be4 {[%clk 0:01:13]}  d3 {[%clk 0:00:33]} 26. Qc3+ {[%clk 0:01:04]}  Qd4+ {[%clk 0:00:12]} 27. Qxd4+ {[%clk 0:01:03]}  cxd4 {[%clk 0:00:13]} 28. Rd1 {[%clk 0:01:03]}  g4 {[%clk 0:00:10]} 29. Rxd3 {[%clk 0:01:02]}  gxf3 {[%clk 0:00:11]} 30. Rxd4 {[%clk 0:01:02]}  Rb6 {[%clk 0:00:05]} 31. b3 {[%clk 0:01:01]}  a4 {[%clk 0:00:05]} 32. Rd3 {[%clk 0:01:01]}  axb3 {[%clk 0:00:06]} 33. Rxb3 {[%clk 0:01:00]}  Re6 {[%clk 0:00:02]} 34. Bxf3 {[%clk 0:00:59]}  Re1+ {[%clk 0:00:00]} 35. Kf2 {[%clk 0:01:00]} 1-0


[Site "https://www.chess.com"]

[Event "Titled Tuesday Blitz July 25 Early 2023"]
[White "Smiechu"]
[Black "Thecourseoisildur"]
[WhiteElo "2386"]
[BlackElo "2565"]
[Result "0-1"]
[Round "10"]
[TimeControl "180+2"]
[Date "2023.07.25"]
[WhiteClock "0:00:27"]
[BlackClock "0:00:11"]
[Board "80"]

1. e4 {[%clk 0:03:00]}  c5 {[%clk 0:02:57]} 2. Nf3 {[%clk 0:03:00]}  e6 {[%clk 0:02:53]} 3. d4 {[%clk 0:03:01]}  cxd4 {[%clk 0:02:52]} 4. Nxd4 {[%clk 0:03:01]}  Nf6 {[%clk 0:02:53]} 5. Nc3 {[%clk 0:03:02]}  Nc6 {[%clk 0:02:54]} 6. a3 {[%clk 0:03:01]}  Be7 {[%clk 0:02:50]} 7. Be3 {[%clk 0:03:00]}  O-O {[%clk 0:02:47]} 8. Bd3 {[%clk 0:03:00]}  d5 {[%clk 0:02:45]} 9. exd5 {[%clk 0:03:01]}  Nxd5 {[%clk 0:02:44]} 10. Nxd5 {[%clk 0:03:01]}  Qxd5 {[%clk 0:02:44]} 11. O-O {[%clk 0:02:59]}  Bf6 {[%clk 0:02:38]} 12. Nxc6 {[%clk 0:02:57]}  Qxc6 {[%clk 0:02:39]} 13. c3 {[%clk 0:02:56]}  b6 {[%clk 0:02:38]} 14. Qc2 {[%clk 0:02:56]}  Bb7 {[%clk 0:02:36]} 15. f3 {[%clk 0:02:51]}  h6 {[%clk 0:02:33]} 16. Be4 {[%clk 0:02:50]}  Qc7 {[%clk 0:02:31]} 17. Rad1 {[%clk 0:02:49]}  Rad8 {[%clk 0:02:31]} 18. Bxb7 {[%clk 0:02:34]}  Qxb7 {[%clk 0:02:31]} 19. Rxd8 {[%clk 0:02:35]}  Rxd8 {[%clk 0:02:32]} 20. Rd1 {[%clk 0:02:35]}  Rxd1+ {[%clk 0:02:19]} 21. Qxd1 {[%clk 0:02:35]}  Be7 {[%clk 0:02:20]} 22. Qd3 {[%clk 0:02:31]}  b5 {[%clk 0:02:17]} 23. Qd4 {[%clk 0:02:26]}  a6 {[%clk 0:02:16]} 24. Qb6 {[%clk 0:02:25]}  Qd5 {[%clk 0:01:56]} 25. Qd4 {[%clk 0:02:20]}  Qb3 {[%clk 0:01:54]} 26. Qd2 {[%clk 0:02:15]}  Qa2 {[%clk 0:01:51]} 27. h3 {[%clk 0:02:08]}  h5 {[%clk 0:01:42]} 28. Qd7 {[%clk 0:02:01]}  Bf8 {[%clk 0:01:40]} 29. Qd8 {[%clk 0:01:51]}  Qb1+ {[%clk 0:01:38]} 30. Kh2 {[%clk 0:01:49]}  Qf5 {[%clk 0:01:37]} 31. Bf2 {[%clk 0:01:39]}  g6 {[%clk 0:01:26]} 32. b4 {[%clk 0:01:30]}  Kg7 {[%clk 0:01:22]} 33. Bd4+ {[%clk 0:01:27]}  e5 {[%clk 0:01:17]} 34. Be3 {[%clk 0:01:27]}  Qe6 {[%clk 0:00:45]} 35. Bh6+ {[%clk 0:01:23]}  Kxh6 {[%clk 0:00:45]} 36. Qxf8+ {[%clk 0:01:24]}  Kh7 {[%clk 0:00:46]} 37. Qc5 {[%clk 0:01:21]}  Qf6 {[%clk 0:00:44]} 38. Kg1 {[%clk 0:01:14]}  Qf4 {[%clk 0:00:42]} 39. Qd5 {[%clk 0:01:09]}  Kg7 {[%clk 0:00:38]} 40. Qd3 {[%clk 0:01:06]}  Qc1+ {[%clk 0:00:38]} 41. Kh2 {[%clk 0:01:06]}  Qxa3 {[%clk 0:00:38]} 42. Qe3 {[%clk 0:01:05]}  f6 {[%clk 0:00:23]} 43. Qa7+ {[%clk 0:00:59]}  Kh6 {[%clk 0:00:23]} 44. Qe3+ {[%clk 0:00:58]}  g5 {[%clk 0:00:23]} 45. Qb6 {[%clk 0:00:55]}  Kg6 {[%clk 0:00:22]} 46. Qc6 {[%clk 0:00:55]}  Qc1 {[%clk 0:00:13]} 47. Qe4+ {[%clk 0:00:54]}  Kf7 {[%clk 0:00:11]} 48. Qb7+ {[%clk 0:00:53]}  Kg6 {[%clk 0:00:10]} 49. Qe4+ {[%clk 0:00:50]}  Kh6 {[%clk 0:00:10]} 50. Qf5 {[%clk 0:00:37]}  Qf4+ {[%clk 0:00:09]} 51. Qxf4 {[%clk 0:00:35]}  gxf4 {[%clk 0:00:10]} 52. Kg1 {[%clk 0:00:31]}  h4 {[%clk 0:00:11]} 53. Kf2 {[%clk 0:00:31]}  f5 {[%clk 0:00:11]} 54. Ke2 {[%clk 0:00:31]}  e4 {[%clk 0:00:11]} 55. Kd2 {[%clk 0:00:30]}  Kg6 {[%clk 0:00:11]} 56. c4 {[%clk 0:00:29]}  bxc4 {[%clk 0:00:11]} 57. Kc3 {[%clk 0:00:27]}  e3 {[%clk 0:00:11]} 0-1


[Site "https://www.chess.com"]

[Event "Titled Tuesday Blitz July 25 Early 2023"]
[White "Peiris, T G M"]
[Black "Santos Flores, Alberto"]
[WhiteFideId "9901310"]
[BlackFideId "3601234"]
[WhiteElo "2375"]
[BlackElo "2532"]
[Result "0-1"]
[Round "10"]
[TimeControl "180+2"]
[Date "2023.07.25"]
[WhiteClock "0:01:36"]
[BlackClock "0:01:45"]
[Board "81"]

1. e4 {[%clk 0:03:00]}  e6 {[%clk 0:03:00]} 2. f4 {[%clk 0:02:59]}  d5 {[%clk 0:03:00]} 3. e5 {[%clk 0:02:59]}  c5 {[%clk 0:02:58]} 4. Nf3 {[%clk 0:03:00]}  Nc6 {[%clk 0:02:58]} 5. c3 {[%clk 0:03:00]}  Bd7 {[%clk 0:02:53]} 6. d4 {[%clk 0:03:00]}  cxd4 {[%clk 0:02:51]} 7. cxd4 {[%clk 0:03:01]}  Qb6 {[%clk 0:02:52]} 8. Nc3 {[%clk 0:03:00]}  Nh6 {[%clk 0:02:50]} 9. Na4 {[%clk 0:02:53]}  Qa5+ {[%clk 0:02:49]} 10. Bd2 {[%clk 0:02:53]}  Bb4 {[%clk 0:02:49]} 11. Nc3 {[%clk 0:02:40]}  Nf5 {[%clk 0:02:41]} 12. Bb5 {[%clk 0:02:26]}  Bxc3 {[%clk 0:02:36]} 13. Bxc6 {[%clk 0:02:25]}  Bxd2+ {[%clk 0:02:36]} 14. Nxd2 {[%clk 0:02:16]}  Bxc6 {[%clk 0:02:34]} 15. O-O {[%clk 0:02:17]}  Nxd4 {[%clk 0:02:31]} 16. Kh1 {[%clk 0:02:13]}  Nf5 {[%clk 0:02:30]} 17. Rf3 {[%clk 0:02:08]}  h5 {[%clk 0:02:27]} 18. Nb3 {[%clk 0:02:07]}  Qb6 {[%clk 0:02:24]} 19. Rh3 {[%clk 0:02:04]}  g6 {[%clk 0:02:19]} 20. Rc1 {[%clk 0:02:04]}  d4 {[%clk 0:02:07]} 21. Qe2 {[%clk 0:01:54]}  Ne3 {[%clk 0:02:01]} 22. Rg3 {[%clk 0:01:54]}  h4 {[%clk 0:01:59]} 23. Rxe3 {[%clk 0:01:45]}  dxe3 {[%clk 0:02:00]} 24. h3 {[%clk 0:01:45]}  O-O-O {[%clk 0:01:54]} 25. Nc5 {[%clk 0:01:36]}  Rd2 {[%clk 0:01:45]} 0-1


[Site "https://www.chess.com"]

[Event "Titled Tuesday Blitz July 25 Early 2023"]
[White "Khamdamova, Afruza"]
[Black "Dwilewicz, Katarzyna"]
[WhiteFideId "14210444"]
[BlackFideId "1148486"]
[WhiteElo "2530"]
[BlackElo "2376"]
[Result "0-1"]
[Round "10"]
[TimeControl "180+2"]
[Date "2023.07.25"]
[WhiteClock "0:00:00"]
[BlackClock "0:00:04"]
[Board "82"]

1. Nf3 {[%clk 0:03:00]}  c5 {[%clk 0:02:56]} 2. g3 {[%clk 0:03:01]}  Nc6 {[%clk 0:02:56]} 3. Bg2 {[%clk 0:03:01]}  e5 {[%clk 0:02:56]} 4. d3 {[%clk 0:02:58]}  d5 {[%clk 0:02:56]} 5. O-O {[%clk 0:02:59]}  Nf6 {[%clk 0:02:57]} 6. Bg5 {[%clk 0:02:58]}  h6 {[%clk 0:02:54]} 7. Bxf6 {[%clk 0:02:58]}  Qxf6 {[%clk 0:02:55]} 8. c4 {[%clk 0:02:57]}  d4 {[%clk 0:02:53]} 9. Nbd2 {[%clk 0:02:57]}  Be6 {[%clk 0:02:52]} 10. Qb3 {[%clk 0:02:54]}  Qe7 {[%clk 0:02:48]} 11. Rfb1 {[%clk 0:02:30]}  g6 {[%clk 0:02:41]} 12. Qb5 {[%clk 0:02:21]}  a6 {[%clk 0:02:29]} 13. Qb6 {[%clk 0:02:19]}  Rc8 {[%clk 0:02:19]} 14. a3 {[%clk 0:02:12]}  Qc7 {[%clk 0:02:17]} 15. Qb3 {[%clk 0:02:04]}  f5 {[%clk 0:02:16]} 16. Qa4 {[%clk 0:02:02]}  Bd6 {[%clk 0:02:11]} 17. b4 {[%clk 0:01:58]}  O-O {[%clk 0:02:04]} 18. bxc5 {[%clk 0:01:48]}  Bxc5 {[%clk 0:02:04]} 19. Nh4 {[%clk 0:01:38]}  Kg7 {[%clk 0:01:55]} 20. Bxc6 {[%clk 0:01:27]}  Qxc6 {[%clk 0:01:54]} 21. Qxc6 {[%clk 0:01:26]}  bxc6 {[%clk 0:01:55]} 22. Rb7+ {[%clk 0:01:27]}  Rf7 {[%clk 0:01:55]} 23. Rab1 {[%clk 0:01:27]}  Rcc7 {[%clk 0:01:49]} 24. Rxc7 {[%clk 0:01:25]}  Rxc7 {[%clk 0:01:49]} 25. a4 {[%clk 0:01:22]}  a5 {[%clk 0:01:41]} 26. f4 {[%clk 0:01:08]}  Bb4 {[%clk 0:01:35]} 27. Ndf3 {[%clk 0:01:04]}  g5 {[%clk 0:01:08]} 28. fxg5 {[%clk 0:01:00]}  hxg5 {[%clk 0:01:09]} 29. Nxg5 {[%clk 0:01:00]}  Bd7 {[%clk 0:01:07]} 30. Rf1 {[%clk 0:00:55]}  Kf6 {[%clk 0:00:53]} 31. Ne4+ {[%clk 0:00:44]}  Ke6 {[%clk 0:00:46]} 32. Ng5+ {[%clk 0:00:42]}  Kf6 {[%clk 0:00:43]} 33. Ngf3 {[%clk 0:00:36]}  c5 {[%clk 0:00:41]} 34. g4 {[%clk 0:00:32]}  Bxa4 {[%clk 0:00:32]} 35. Nxf5 {[%clk 0:00:26]}  Bb3 {[%clk 0:00:22]} 36. N3xd4 {[%clk 0:00:23]}  exd4 {[%clk 0:00:11]} 37. Nxd4+ {[%clk 0:00:23]}  Ke5 {[%clk 0:00:11]} 38. Nxb3 {[%clk 0:00:23]}  a4 {[%clk 0:00:12]} 39. Rf5+ {[%clk 0:00:23]}  Ke6 {[%clk 0:00:11]} 40. Nc1 {[%clk 0:00:20]}  a3 {[%clk 0:00:12]} 41. Na2 {[%clk 0:00:20]}  Rb7 {[%clk 0:00:08]} 42. Rf1 {[%clk 0:00:13]}  Bd2 {[%clk 0:00:07]} 43. Ra1 {[%clk 0:00:08]}  Be3+ {[%clk 0:00:06]} 44. Kg2 {[%clk 0:00:08]}  Bd4 {[%clk 0:00:07]} 45. Rd1 {[%clk 0:00:05]}  Rb2 {[%clk 0:00:08]} 46. Nc1 {[%clk 0:00:04]}  a2 {[%clk 0:00:07]} 47. Nxa2 {[%clk 0:00:03]}  Rxe2+ {[%clk 0:00:08]} 48. Kf3 {[%clk 0:00:02]}  Rxa2 {[%clk 0:00:09]} 49. h4 {[%clk 0:00:01]}  Rf2+ {[%clk 0:00:05]} 50. Ke4 {[%clk 0:00:02]}  Re2+ {[%clk 0:00:05]} 51. Kf3 {[%clk 0:00:02]}  Re3+ {[%clk 0:00:06]} 52. Kf4 {[%clk 0:00:03]}  Rh3 {[%clk 0:00:04]} 53. h5 {[%clk 0:00:03]}  Be5+ {[%clk 0:00:03]} 54. Kg5 {[%clk 0:00:03]}  Bf6+ {[%clk 0:00:02]} 55. Kg6 {[%clk 0:00:03]}  Rg3 {[%clk 0:00:03]} 56. Re1+ {[%clk 0:00:03]}  Be5 {[%clk 0:00:03]} 57. g5 {[%clk 0:00:04]}  Kd6 {[%clk 0:00:04]} 58. Kf5 {[%clk 0:00:02]}  Rf3+ {[%clk 0:00:04]} 59. Kg6 {[%clk 0:00:02]}  Rxd3 {[%clk 0:00:04]} 60. h6 {[%clk 0:00:02]}  Rg3 {[%clk 0:00:04]} 61. Rf1 {[%clk 0:00:01]}  Rg4 {[%clk 0:00:04]} 62. h7 {[%clk 0:00:01]}  Rxc4 {[%clk 0:00:05]} 63. Rd1+ {[%clk 0:00:01]}  Ke6 {[%clk 0:00:05]} 64. Rh1 {[%clk 0:00:00]}  Re4 {[%clk 0:00:04]} 0-1


[Site "https://www.chess.com"]

[Event "Titled Tuesday Blitz July 25 Early 2023"]
[White "Rodriguez Santiago, Jaime"]
[Black "Shapiro, Viktor"]
[WhiteFideId "3100898"]
[BlackFideId "4175700"]
[WhiteElo "2374"]
[BlackElo "2530"]
[Result "0-1"]
[Round "10"]
[TimeControl "180+2"]
[Date "2023.07.25"]
[WhiteClock "0:00:25"]
[BlackClock "0:01:36"]
[Board "83"]

1. c4 {[%clk 0:03:00]}  Nf6 {[%clk 0:03:00]} 2. Nc3 {[%clk 0:02:58]}  c5 {[%clk 0:03:01]} 3. g3 {[%clk 0:02:58]}  Nc6 {[%clk 0:03:01]} 4. Bg2 {[%clk 0:02:59]}  d6 {[%clk 0:03:00]} 5. e4 {[%clk 0:02:59]}  e6 {[%clk 0:03:00]} 6. Nge2 {[%clk 0:02:59]}  Be7 {[%clk 0:03:01]} 7. d3 {[%clk 0:02:59]}  a6 {[%clk 0:03:01]} 8. a4 {[%clk 0:02:58]}  O-O {[%clk 0:03:00]} 9. O-O {[%clk 0:02:58]}  Rb8 {[%clk 0:03:00]} 10. h3 {[%clk 0:02:57]}  Bd7 {[%clk 0:03:01]} 11. Be3 {[%clk 0:02:57]}  Ne8 {[%clk 0:02:59]} 12. Rb1 {[%clk 0:02:55]}  Nc7 {[%clk 0:02:58]} 13. f4 {[%clk 0:02:48]}  b5 {[%clk 0:02:58]} 14. axb5 {[%clk 0:02:46]}  axb5 {[%clk 0:02:58]} 15. cxb5 {[%clk 0:02:46]}  Nxb5 {[%clk 0:02:58]} 16. Nxb5 {[%clk 0:02:46]}  Rxb5 {[%clk 0:02:58]} 17. d4 {[%clk 0:02:46]}  cxd4 {[%clk 0:02:52]} 18. Nxd4 {[%clk 0:02:45]}  Rb4 {[%clk 0:02:39]} 19. Qd2 {[%clk 0:02:24]}  Qb8 {[%clk 0:02:35]} 20. Rfc1 {[%clk 0:02:13]}  Na5 {[%clk 0:02:35]} 21. Bf1 {[%clk 0:01:56]}  e5 {[%clk 0:02:30]} 22. fxe5 {[%clk 0:01:43]}  dxe5 {[%clk 0:02:30]} 23. Nf3 {[%clk 0:01:42]}  Rxe4 {[%clk 0:02:02]} 24. Bd3 {[%clk 0:01:16]}  Nb3 {[%clk 0:01:56]} 25. Qe2 {[%clk 0:00:58]}  Nxc1 {[%clk 0:01:44]} 26. Rxc1 {[%clk 0:00:54]}  Rb4 {[%clk 0:01:43]} 27. Rc2 {[%clk 0:00:47]}  e4 {[%clk 0:01:39]} 28. Bxe4 {[%clk 0:00:34]}  Rxe4 {[%clk 0:01:38]} 29. Qd3 {[%clk 0:00:25]}  Qxg3+ {[%clk 0:01:36]} 0-1


[Site "https://www.chess.com"]